bitfinex-derivatives/quotes_SOLF0:USTF0_20251201
["timestamp","ask_amount","ask_price","bid_price","bid_amount"]
[1764548499679,110.5298,130.04,129.92,8.17]
[1764548499891,107.6598,130.04,129.92,8.17]
[1764548500191,107.63,130.08,129.96,115.8862]
[1764548500391,107.63,130.08,129.95,107.7256]
[1764548500392,107.6012,130.11,130.0,8.17]
[1764548500592,107.5861,130.13,130.05,8.17]
[1764548500780,107.5984,130.11,130.0,115.8535]
[1764548500982,107.5945,130.12,130.02,8.17]
[1764548501284,107.5861,130.13,130.03,8.17]
[1764548501475,107.5975,130.12,130.03,8.17]
[1764548501681,0.03282775,130.09,130.06,0.05756219]
[1764548502389,107.65262775,130.09,130.06,0.05756219]
[1764548502577,218.231,130.08,130.06,0.05756219]
[1764548502779,107.6404,130.06,129.98,8.17]
[1764548502988,107.6586,130.04,129.94,8.17]
[1764548503177,107.6927,130.0,129.9,30.2]
[1764548503382,107.6737,130.02,129.91,115.9315]
[1764548503576,107.6737,130.02,129.92,8.17]
[1764548503784,107.6453,130.06,129.96,8.21933353]
[1764548503991,107.6529,130.05,129.96,8.17]
[1764548504187,107.6592,130.04,129.96,8.17]
[1764548504490,107.6453,130.06,129.96,8.17]
[1764548504680,107.6605,130.04,129.96,8.17]
[1764548504877,0.03200775,130.01,129.99,0.05616402]
[1764548505081,0.03200775,130.01,129.99,8.22616402]
[1764548505285,107.6535,130.05,129.99,0.05616402]
[1764548505485,107.6669,130.03,129.99,0.05616402]
[1764548506092,107.6622,130.04,129.99,0.05616402]
[1764548506280,107.6453,130.06,129.99,8.22616402]
[1764548506486,107.619,130.09,129.99,8.22616402]
[1764548506792,107.619,130.09,130.03,0.0527988]
[1764548507384,107.6119,130.1,130.03,0.0527988]
[1764548507582,107.6119,130.1,130.05,8.22429811]
[1764548508387,107.6228,130.08,130.05,0.05429811]
[1764548509091,114.5297,130.1,130.05,0.05429811]
[1764548509293,114.5297,130.1,130.05,8.22429811]
[1764548509489,107.6119,130.1,130.05,8.22429811]
[1764548509686,107.6182,130.09,130.05,0.05429811]
[1764548510188,107.5848,130.13,130.05,0.05429811]
[1764548510499,107.6005,130.11,130.08,0.05280904]
[1764548510685,114.5369,130.09,130.08,0.05573541]
[1764548510894,107.6109,130.1,130.08,0.05573541]
[1764548511090,107.6109,130.1,129.97,0.20123]
[1764548511091,107.6497,130.05,129.97,8.93123]
[1764548511286,107.6366,130.07,129.97,8.93123]
[1764548511490,107.6275,130.08,129.97,8.93123]
[1764548511698,107.6446,130.06,129.97,8.93123]
[1764548511897,107.589,130.13,130.0,8.73]
[1764548512203,5.56,130.2,130.06,8.73]
[1764548512390,107.4984,130.24,130.1,8.73]
[1764548512585,107.4953,130.24,130.12,8.73]
[1764548512786,107.4781,130.26,130.14,8.73]
[1764548513200,107.4616,130.28,130.19,0.0523857]
[1764548513397,107.4616,130.28,130.22,0.05745453]
[1764548513398,107.477,130.26,130.22,0.05745453]
[1764548513695,107.4949,130.24,130.22,0.05745453]
[1764548513898,107.4949,130.24,130.15,8.73]
[1764548513899,107.5068,130.23,130.11,30.08]
[1764548514194,6.9114,130.22,130.12,8.73]
[1764548514388,107.5268,130.2,130.12,8.73]
[1764548514804,107.5433,130.18,130.12,8.73]
[1764548514993,0.05490635,130.17,130.15,8.78403316]
[1764548515189,6.9093,130.26,130.15,8.78526127]
[1764548515492,107.5096,130.22,130.15,8.73]
[1764548515799,107.5105,130.22,130.15,8.73]
[1764548516192,107.5105,130.22,130.17,0.05419493]
[1764548516193,107.5433,130.18,130.17,0.05419493]
[1764548516385,114.4568,130.18,130.16,0.05898682]
[1764548516593,222.0005,130.18,130.16,0.05898682]
[1764548517091,114.4741,130.16,130.1,8.73]
[1764548517294,107.5928,130.12,130.05,8.73]
[1764548517495,107.5596,130.16,130.05,8.73]
[1764548517794,107.5542,130.17,130.05,8.73]
[1764548517795,107.5516,130.17,130.05,8.73]
[1764548518004,107.5691,130.15,130.05,8.73]
[1764548518197,0.05660099,130.11,130.09,0.05704633]
[1764548518603,107.6137,130.1,130.02,30.04]
[1764548518896,107.6153,130.09,130.02,30.04]
[1764548519193,114.5243,130.1,130.02,30.04]
[1764548519393,113.2162,130.11,130.02,30.04]
[1764548519594,0.04964372,130.08,130.05,0.05312991]
[1764548519999,107.6343,130.07,130.05,0.05312991]
[1764548520200,220.8786,130.07,129.97,0.20123]
[1764548520403,5.61,130.13,130.0,8.73]
[1764548520697,107.6286,130.08,129.98,8.73]
[1764548520900,107.6343,130.07,129.98,8.73]
[1764548521087,113.2132,130.11,129.99,8.73]
[1764548521291,107.5857,130.13,130.04,8.78378743]
[1764548521292,0.04881599,130.06,130.04,8.78378743]
[1764548521499,107.6147,130.09,130.0,8.73]
[1764548521696,0.05785696,130.06,130.04,8.77858356]
[1764548521894,113.2246,130.09,130.04,0.04858356]
[1764548522099,0.0513741,130.06,130.04,0.04858356]
[1764548522296,113.3084741,130.06,129.97,0.20123]
[1764548522508,5.61,130.01,129.97,0.20123]
[1764548522709,107.6593,130.04,129.97,0.20123]
[1764548523097,107.6471,130.06,129.97,0.20123]
[1764548523291,0.001997,130.03,130.0,8.78550883]
[1764548523609,107.5924,130.12,130.0,10.32550883]
[1764548523795,107.5755,130.14,130.02,8.73]
[1764548524105,107.5845,130.13,130.02,8.73]
[1764548524308,107.6258,130.08,129.96,8.73]
[1764548524605,0.04921973,130.04,130.01,0.05732206]
[1764548524800,0.04921973,130.04,130.01,0.05643361]
[1764548524994,5.67,130.02,130.01,0.05643361]
[1764548525203,5.67,130.02,129.97,0.20123]
[1764548525396,113.2949,130.01,129.97,0.20123]
[1764548525702,5.61,130.01,129.97,0.20123]
[1764548525892,107.6642,130.03,129.97,0.20123]
[1764548526099,0.04975466,130.01,129.97,0.20123]
[1764548526305,107.6012,130.11,130.0,8.73]
[1764548526497,6.9171,130.11,130.0,123.3379]
[1764548526701,6.9171,130.11,130.01,8.73]
[1764548527004,6.9171,130.11,130.02,8.73]
[1764548527400,0.05020232,130.08,130.05,0.04985071]
[1764548527901,5.66020232,130.08,130.05,0.04985071]
[1764548528105,107.6346,130.07,130.05,0.04985071]
[1764548528404,107.6601,130.04,129.97,0.20123]
[1764548528700,107.6671,130.03,129.97,0.20123]
[1764548528906,107.659,130.04,129.97,0.20123]
[1764548529096,107.651,130.05,129.97,0.20123]
[1764548529304,0.05039508,130.02,130.0,0.05132807]
[1764548530006,6.9181,130.09,130.0,8.78132807]
[1764548530205,5.56,130.1,130.0,116.4154]
[1764548530400,5.56,130.1,130.0,123.3377]
[1764548530599,107.6328,130.07,129.97,0.20123]
[1764548530801,107.6735,130.02,129.97,0.20123]
[1764548531005,113.2622,129.99,129.9,30.0]
[1764548531303,107.7241,129.96,129.9,30.0]
[1764548531496,107.7241,129.96,129.85,100.97]
[1764548531497,107.7323,129.95,129.85,100.97]
[1764548531806,107.7493,129.93,129.83,29.98]
[1764548532105,107.7413,129.94,129.83,146.5384]
[1764548532295,0.05781117,129.89,129.87,0.05550658]
[1764548532601,107.6789,130.02,129.87,116.5265]
[1764548532602,5.51,130.0,129.87,116.5265]
[1764548532802,5.51,130.04,129.91,8.73]
[1764548533013,107.6725,130.02,129.91,15.6572]
[1764548533404,0.0485789,129.98,129.95,0.05654228]
[1764548534311,0.0485789,129.98,129.95,8.78654228]
[1764548534819,5.51,130.08,129.97,116.4435]
[1764548534998,5.51,130.08,129.98,107.7033]
[1764548535195,107.6023,130.11,129.99,8.73]
[1764548535408,107.6154,130.09,129.99,8.73]
[1764548535600,107.6315,130.07,129.99,8.73]
[1764548535799,0.04843873,130.04,130.02,0.04974017]
[1764548536108,6.96953873,130.04,130.02,0.04974017]
[1764548536414,0.04843873,130.04,130.02,0.04974017]
[1764548536610,107.6674,130.03,129.94,8.73]
[1764548536909,107.6912,130.0,129.92,29.94]
[1764548537207,113.01294857,129.99,129.89,8.73]
[1764548537408,5.31084857,129.98,129.89,8.73]
[1764548537599,6.58148982,130.03,129.95,116.4559]
[1764548537803,107.6733,130.02,129.9,116.4963]
[1764548538000,5.32308865,130.01,129.9,15.658]
[1764548538207,5.32308865,130.03,129.99,8.73]
[1764548538408,5.32308865,130.03,129.98,107.7044]
[1764548538409,5.32308865,130.06,130.03,8.73]
[1764548538616,5.32308865,130.09,130.01,107.6804]
[1764548538914,0.05732964,130.06,130.03,0.05880184]
[1764548539297,5.38188296,130.06,130.03,0.05880184]
[1764548539500,0.05732964,130.06,130.03,0.05880184]
[1764548539701,4.63732964,130.06,130.03,0.05880184]
[1764548539901,5.32455332,130.05,130.03,0.05880184]
[1764548540505,0.05732964,130.06,130.03,0.05880184]
[1764548540709,5.38188296,130.06,130.03,0.05880184]
[1764548540905,0.05732964,130.06,130.03,0.05880184]
[1764548541308,11.16148982,130.14,130.03,117.87180184]
[1764548541508,5.32333915,130.13,130.04,8.61]
[1764548541812,5.32333915,130.12,130.04,15.5302]
[1764548542004,5.32333915,130.13,130.04,15.5302]
[1764548542205,5.32333915,130.12,130.04,8.61]
[1764548542405,16.82083915,130.11,130.01,114.5947]
[1764548542612,112.25044431,130.09,129.99,8.61]
[1764548542803,5.32333915,130.08,129.99,8.61]
[1764548543109,5.32333915,130.07,129.99,8.61]
[1764548543310,5.32333915,130.06,129.99,8.61]
[1764548543507,114.17848982,130.12,130.02,107.6704]
[1764548543712,0.05169683,130.08,130.06,0.05458995]
[1764548543913,5.3249354,130.13,130.06,8.66458995]
[1764548544116,5.3249354,130.14,130.06,116.2445]
[1764548544411,5.3249354,130.14,130.07,107.6265]
[1764548544606,5.3249354,130.16,130.07,8.74]
[1764548544808,5.3249354,130.15,130.08,6.9182]
[1764548545008,0.05252388,130.13,130.1,0.05612633]
[1764548545414,4.44252388,130.13,130.1,0.05612633]
[1764548545611,5.37745928,130.13,130.1,0.05612633]
[1764548545816,0.05252388,130.13,130.1,0.05612633]
[1764548546217,5.37745928,130.13,130.1,0.05612633]
[1764548546518,112.03212388,130.13,130.1,0.05612633]
[1764548546715,4.33,130.1,130.02,114.5887]
[1764548547020,4.33,130.1,129.97,128.96871067]
[1764548547021,9.6549354,130.09,129.97,116.4499]
[1764548547208,5.3249354,130.08,130.01,107.6773]
[1764548547520,5.3249354,130.1,130.02,107.6654]
[1764548547716,0.05840103,130.07,130.05,0.05807384]
[1764548547921,0.04925211,130.07,130.05,0.05807384]
[1764548548517,107.5582,130.16,130.05,107.70247384]
[1764548548710,117.22123129,130.15,130.05,107.6444]
[1764548549022,4.33,130.12,130.02,107.6654]
[1764548549317,4.33,130.1,130.01,114.601]
[1764548549519,4.33,130.09,130.01,6.9218]
[1764548549718,0.05335672,130.07,130.04,0.05431946]
[1764548551116,4.38335672,130.07,130.04,0.05431946]
[1764548551822,0.05335672,130.07,130.04,0.05431946]
[1764548553024,0.05335672,130.07,130.05,6.9198]
[1764548553225,0.05335672,130.07,130.04,0.05431946]
[1764548554423,4.38335672,130.07,130.04,0.05431946]
[1764548554826,112.01795672,130.07,130.04,0.05431946]
[1764548555018,112.01795672,130.07,129.97,107.7131]
[1764548555222,111.9646,130.07,129.97,107.7131]
[1764548555626,111.9279,130.05,129.95,29.6]
[1764548555927,4.28,130.05,129.99,0.0500732]
[1764548556134,0.05846343,130.01,129.99,0.0500732]
[1764548556935,0.05846343,130.01,129.99,8.7900732]
[1764548557235,4.28,130.09,130.0,107.6885]
[1764548557429,4.28,130.09,129.99,116.4339]
[1764548557628,107.625,130.08,129.99,8.74]
[1764548557933,111.8642,130.13,130.02,8.74]
[1764548558133,0.05283881,130.09,130.06,0.050993]
[1764548558828,4.33283881,130.09,130.06,0.050993]
[1764548559236,111.9032,130.08,130.06,0.050993]
[1764548559531,4.23,130.06,130.02,29.56]
[1764548559732,4.23,130.09,130.02,29.56]
[1764548559931,111.8471,130.09,130.02,29.56]
[1764548560123,6.9188,130.08,130.02,29.56]
[1764548560436,0.05113575,130.06,130.04,0.05117744]
[1764548560830,4.28113575,130.06,130.04,0.05117744]
[1764548561332,4.23,130.05,130.04,0.05117744]
[1764548561635,4.23,130.05,129.99,6.9233]
[1764548561826,11.1504,130.05,129.96,6.9247]
[1764548562532,0.05518801,130.02,129.99,0.05873508]
[1764548562926,0.05518801,130.02,129.99,8.79873508]
[1764548563129,6.9194,130.07,129.99,8.79873508]
[1764548563334,107.5873,130.13,130.02,8.74]
[1764548563537,6.9173,130.11,130.03,36.3812]
[1764548563731,107.5539,130.17,130.05,116.3851]
[1764548563936,107.5539,130.17,130.06,8.74]
[1764548564131,6.9146,130.16,130.08,15.658]
[1764548564438,0.05524202,130.13,130.11,0.05653765]
[1764548564638,107.5381,130.19,130.09,8.74]
[1764548564936,0.05218871,130.13,130.11,0.04935523]
[1764548565128,0.05458976,130.13,130.11,0.05730553]
[1764548565526,6.9133,130.18,130.11,0.05730553]
[1764548565527,4.18,130.21,130.11,117.93410553]
[1764548565729,11.092,130.21,130.13,6.9155]
[1764548566433,111.7102,130.2,130.11,6.9169]
[1764548566743,0.05442243,130.17,130.14,0.05123874]
[1764548566944,4.23442243,130.17,130.14,0.05123874]
[1764548568033,11.14842243,130.17,130.14,0.05123874]
[1764548568440,6.96842243,130.17,130.14,0.05123874]
[1764548568832,11.14842243,130.17,130.14,0.05123874]
[1764548569737,3.4,130.16,130.14,0.05123874]
[1764548569939,3.4,130.15,130.09,29.38]
[1764548570148,3.35,130.13,130.03,20.61881067]
[1764548570333,3.35,130.13,130.03,49.97881067]
[1764548570646,107.5903,130.12,130.03,37.46]
[1764548570835,107.6146,130.09,130.03,29.36]
[1764548571031,111.02309059,130.09,130.06,0.05089087]
[1764548571240,6.9189,130.08,130.06,0.05089087]
[1764548571447,10.2689,130.08,130.06,0.05089087]
[1764548571743,6.9209,130.04,129.96,29.32]
[1764548571931,3.3,130.04,129.96,29.32]
[1764548572137,110.9584,130.04,129.96,29.32]
[1764548572338,3.3,130.04,129.96,29.32]
[1764548572747,0.05126551,130.01,129.99,0.05095642]
[1764548573137,3.35126551,130.01,129.99,0.05095642]
[1764548573342,110.9915,130.0,129.9,8.1]
[1764548573539,3.3,130.06,129.97,15.0241]
[1764548573747,3.3,130.11,130.0,107.6866]
[1764548574040,3.3,130.16,130.07,15.0189]
[1764548574242,3.3,130.16,130.07,8.1]
[1764548574543,3.25,130.11,129.97,8.1]
[1764548574845,3.25,130.12,130.0,8.1]
[1764548575146,6.9189,130.08,130.0,8.1]
[1764548575347,114.5422,130.08,130.0,8.1]
[1764548575544,6.9189,130.08,130.0,8.1]
[1764548575746,0.05467895,130.05,130.03,0.05819545]
[1764548577547,110.81,130.16,130.04,8.1]
[1764548577742,107.5651,130.15,130.07,8.1]
[1764548577937,3.25,130.2,130.09,8.1]
[1764548578140,107.5082,130.22,130.12,8.1]
[1764548578342,107.5161,130.21,130.12,8.1]
[1764548578546,0.0546146,130.18,130.15,0.05377788]
[1764548580235,0.0546146,130.18,130.15,8.15377788]
[1764548580445,0.0546146,130.18,130.15,0.05377788]
[1764548580446,3.3046146,130.18,130.15,0.05377788]
[1764548580745,110.7633,130.14,130.05,8.1]
[1764548580948,6.9166,130.12,130.04,6.9206]
[1764548581236,107.5733,130.14,130.05,8.1]
[1764548581440,114.4903,130.14,130.06,8.1]
[1764548581844,3.2447964,130.11,130.09,0.05693266]
[1764548582040,6.9175,130.1,130.09,0.05693266]
[1764548582247,107.6242,130.08,130.02,29.3]
[1764548582441,3.19,130.06,130.02,29.3]
[1764548582837,3.19,130.11,130.02,37.4]
[1764548583242,3.19,130.11,129.98,8.1]
[1764548583243,110.771,130.07,129.98,8.1]
[1764548583843,107.6185,130.09,130.0,8.1]
[1764548584039,107.5995,130.11,130.02,8.1]
[1764548584250,0.05788844,130.08,130.05,0.05219716]
[1764548584444,0.05788844,130.08,130.05,8.15219716]
[1764548585148,3.14,130.06,129.96,8.1]
[1764548585357,107.651,130.05,129.96,8.1]
[1764548585653,6.9229,130.0,129.92,29.28]
[1764548586244,0.05469899,129.97,129.95,8.15782132]
[1764548586447,0.05469899,129.97,129.95,0.05782132]
[1764548587350,0.05469899,129.97,129.95,8.15782132]
[1764548588254,107.6635,130.04,129.95,8.15782132]
[1764548588454,107.6635,130.04,129.95,8.1]
[1764548588953,6.9224,130.01,129.95,8.1]
[1764548589152,0.04845279,129.99,129.97,0.05241281]
[1764548590557,3.13845279,129.99,129.97,0.05241281]
[1764548590758,10.0139,129.98,129.97,0.05241281]
[1764548591058,0.04845279,129.99,129.97,0.05241281]
[1764548591261,3.13845279,129.99,129.97,0.05241281]
[1764548591554,3.13845279,129.99,129.92,29.28]
[1764548591555,3.04,129.96,129.92,29.28]
[1764548591752,3.04,129.95,129.92,29.28]
[1764548591955,110.7191,130.02,129.92,29.28]
[1764548592250,3.04,130.01,129.92,29.28]
[1764548592455,110.7381,129.99,129.92,29.28]
[1764548592668,3.09475725,129.98,129.95,0.0506051]
[1764548593446,107.7159,129.97,129.95,0.0506051]
[1764548593652,3.04,129.97,129.95,0.0506051]
[1764548593852,0.05475725,129.98,129.95,0.0506051]
[1764548595363,0.05475725,129.98,129.95,8.1506051]
[1764548595552,110.6821,130.06,129.95,9.6906051]
[1764548595752,110.7429,130.05,129.95,8.1]
[1764548595960,6.9218,130.02,129.92,37.38]
[1764548596156,107.6727,130.02,129.92,37.38]
[1764548596357,107.7014,129.99,129.92,37.38]
[1764548596665,3.15,130.11,129.99,8.1]
[1764548596963,10.0654,130.15,130.05,8.1]
[1764548597151,107.5736,130.14,130.05,8.1]
[1764548597548,107.5829,130.13,130.05,8.1]
[1764548597748,110.685,130.19,130.07,8.1]
[1764548597958,107.5521,130.17,130.09,8.1]
[1764548598156,110.685,130.19,130.09,8.1]
[1764548598157,110.6824,130.19,130.09,8.1]
[1764548598360,3.15,130.19,130.1,8.1]
[1764548598558,107.5271,130.2,130.1,8.1]
[1764548598857,114.4456,130.19,130.1,15.0171]
[1764548599062,0.05563446,130.16,130.13,0.04884891]
[1764548599459,107.566,130.15,130.13,0.04884891]
[1764548599763,107.5823,130.13,130.08,29.14]
[1764548599963,107.5519,130.17,130.08,29.14]
[1764548600164,2.31,130.18,130.08,29.14]
[1764548600459,6.9162,130.13,130.08,29.14]
[1764548600663,0.05523966,130.12,130.09,8.11107262]
[1764548601053,107.5282,130.2,130.09,9.65107262]
[1764548601256,107.4958,130.24,130.13,115.6345]
[1764548601561,107.4958,130.24,130.14,8.06]
[1764548601757,6.9114,130.22,130.14,14.975]
[1764548601955,6.9114,130.22,130.14,8.06]
[1764548602157,0.05092456,130.19,130.17,0.05580213]
[1764548602666,2.36092456,130.19,130.17,0.05580213]
[1764548602968,107.5905,130.12,130.03,8.06]
[1764548603561,114.5185,130.11,130.03,8.06]
[1764548603759,0.05516715,130.08,130.06,0.05863347]
[1764548604458,9.17376715,130.08,130.06,0.05863347]
[1764548604662,2.2,130.07,130.02,29.12]
[1764548604863,109.8345,130.07,130.02,29.12]
[1764548605064,2.2,130.05,130.02,29.12]
[1764548605265,114.5626,130.06,129.91,115.6828]
[1764548605266,107.6733,130.02,129.91,115.6828]
[1764548605460,107.6853,130.01,129.92,7.92]
[1764548605766,2.25147209,129.98,129.95,0.05779175]
[1764548605969,116.88557209,129.98,129.95,0.05779175]
[1764548606268,114.68557209,129.98,129.95,0.05779175]
[1764548606564,114.68557209,129.98,129.89,29.12]
[1764548606565,2.14,129.93,129.89,29.12]
[1764548606963,107.7407,129.94,129.89,29.12]
[1764548607162,6.926,129.94,129.89,29.12]
[1764548607567,116.86962053,129.93,129.9,0.04849935]
[1764548607869,6.97852053,129.93,129.9,0.04849935]
[1764548608571,0.05152053,129.93,129.9,0.04849935]
[1764548608864,107.7101,129.98,129.9,7.96849935]
[1764548609062,107.7066,129.98,129.9,7.92]
[1764548609267,109.8466,129.98,129.88,7.92]
[1764548609463,107.7173,129.97,129.88,7.92]
[1764548609658,107.7344,129.95,129.84,7.92]
[1764548609869,107.7344,129.95,129.8,7.92]
[1764548609870,107.7816,129.89,129.8,7.92]
[1764548610061,109.9216,129.89,129.8,7.92]
[1764548610263,109.9216,129.89,129.77,107.8767]
[1764548610264,109.8903,129.93,129.78,107.8682]
[1764548610565,107.7758,129.9,129.79,7.92]
[1764548610765,114.7041,129.9,129.79,14.8535]
[1764548610966,107.7996,129.87,129.79,7.92]
[1764548611162,107.86230713,129.86,129.83,0.0501907]
[1764548611367,107.8248,129.84,129.76,29.14]
[1764548611565,136.9094,129.91,129.76,29.14]
[1764548611775,107.7829,129.89,129.77,7.92]
[1764548611970,2.14,129.9,129.79,7.92]
[1764548612167,107.7841,129.89,129.79,7.92]
[1764548612475,107.87181617,129.85,129.83,0.0566379]
[1764548612964,0.05591617,129.85,129.83,0.0566379]
[1764548613355,107.75,129.93,129.83,9.5166379]
[1764548613555,107.75,129.93,129.83,7.92]
[1764548613760,29.14,129.98,129.87,7.92]
[1764548613761,107.7167,129.97,129.87,7.92]
[1764548613960,139.0005,130.03,129.89,7.92]
[1764548614166,114.6144,130.0,129.9,7.92]
[1764548614470,0.05312944,129.96,129.94,0.05137513]
[1764548614670,0.05312944,129.96,129.94,7.97137513]
[1764548614875,0.05312944,129.96,129.94,0.05137513]
[1764548615163,0.05312944,129.96,129.94,7.97137513]
[1764548615164,0.00312944,129.96,129.94,7.97137513]
[1764548615370,107.6586,130.04,129.94,9.51137513]
[1764548615371,107.661,130.04,129.94,9.51137513]
[1764548615564,109.8719,130.07,129.95,7.92]
[1764548615867,107.6562,130.04,129.95,7.92]
[1764548616070,107.6425,130.06,129.95,7.92]
[1764548616367,109.97359442,130.02,129.99,0.05260182]
[1764548616673,107.7097,129.98,129.91,29.14]
[1764548616971,110.01822543,129.96,129.93,0.05627599]
[1764548617161,0.05202543,129.96,129.93,0.05627599]
[1764548617362,0.05202543,129.96,129.93,7.97627599]
[1764548617566,0.05202543,129.96,129.93,0.05627599]
[1764548618460,109.9751,129.95,129.93,0.05627599]
[1764548618664,116.901,129.95,129.93,0.05627599]
[1764548618962,2.24,129.94,129.84,29.14]
[1764548619173,114.6579,129.95,129.85,7.92]
[1764548619367,107.7471,129.93,129.85,7.92]
[1764548619673,114.6861,129.92,129.85,7.92]
[1764548619873,107.7679,129.91,129.84,29.14]
[1764548620077,0.05362179,129.89,129.86,0.05054359]
[1764548621780,0.05362179,129.89,129.86,7.97054359]
[1764548622077,2.29362179,129.89,129.86,0.05054359]
[1764548622476,9.22252179,129.89,129.86,0.05054359]
[1764548622677,2.24,129.88,129.86,0.05054359]
[1764548622976,110.0319,129.88,129.86,0.05054359]
[1764548623972,6.9296,129.88,129.86,0.05054359]
[1764548625772,0.05362179,129.89,129.86,0.05054359]
[1764548626179,107.7418,129.94,129.86,7.97054359]
[1764548626480,107.7418,129.94,129.86,7.92]
[1764548626878,114.6683,129.94,129.86,7.92]
[1764548627371,0.05723096,129.91,129.89,0.05017451]
[1764548628679,107.7097,129.98,129.91,7.92]
[1764548628877,107.7349,129.95,129.88,29.16]
[1764548629178,6.9276,129.91,129.88,29.16]
[1764548629375,114.6975,129.91,129.82,14.8524]
[1764548629578,107.7876,129.89,129.82,7.92]
[1764548629877,6.9302,129.87,129.85,0.05017607]
[1764548630069,0.04998764,129.88,129.85,0.05017607]
[1764548630471,107.7422,129.94,129.85,8.81017607]
[1764548630675,107.7471,129.93,129.85,7.22]
[1764548630876,107.7556,129.92,129.85,7.22]
[1764548631474,0.05302025,129.9,129.87,0.05829714]
[1764548631676,0.05302025,129.9,129.87,7.27829714]
[1764548634180,107.7,129.99,129.88,7.22]
[1764548634873,107.7139,129.97,129.89,7.22]
[1764548635075,107.7313,129.95,129.85,36.36]
[1764548635284,1.8,129.95,129.86,7.22]
[1764548635581,0.05713235,129.91,129.89,0.05878546]
[1764548636781,1.8,129.99,129.91,7.22]
[1764548636980,109.5743,129.97,129.87,14.1496]
[1764548637179,107.7235,129.96,129.87,7.22]
[1764548637576,6.9265,129.94,129.87,7.22]
[1764548637781,0.05217903,129.92,129.89,0.04853196]
[1764548637979,6.97967903,129.92,129.89,0.04853196]
[1764548638482,1.91217903,129.92,129.89,0.04853196]
[1764548638682,1.91217903,129.92,129.83,7.22]
[1764548638683,1.86,129.9,129.83,7.22]
[1764548639179,109.6009,129.94,129.83,7.22]
[1764548639477,109.6103,129.93,129.83,7.22]
[1764548639679,1.86,129.9,129.87,0.0542131]
[1764548639866,109.6404,129.89,129.79,7.22]
[1764548640276,1.86,129.89,129.81,14.1529]
[1764548640477,1.81,129.9,129.82,7.22]
[1764548640681,109.5961,129.89,129.78,26.44]
[1764548640868,1.8604759,129.85,129.82,0.05559953]
[1764548641268,1.8604759,129.85,129.77,29.14]
[1764548641269,6.9322,129.83,129.77,29.14]
[1764548641775,6.9305,129.86,129.78,7.22]
[1764548641973,107.7777,129.9,129.8,7.22]
[1764548642174,0.05653016,129.86,129.84,0.0568069]
[1764548642783,0.05653016,129.86,129.84,7.2768069]
[1764548642974,107.7337,129.95,129.85,7.22]
[1764548643279,107.7034,129.99,129.88,115.0078]
[1764548643484,107.6853,130.01,129.91,114.9818]
[1764548643669,107.6853,130.01,129.92,7.22]
[1764548643875,6.9221,130.02,129.92,114.9731]
[1764548644075,0.05368371,129.98,129.95,7.26895913]
[1764548644280,0.05368371,129.98,129.95,0.04895913]
[1764548644475,0.05368371,129.98,129.95,7.26895913]
[1764548644677,0.05368371,129.98,129.95,0.04895913]
[1764548645178,0.05368371,129.98,129.95,7.26895913]
[1764548645380,6.9213,130.03,129.95,7.26895913]
[1764548645584,6.9213,130.03,129.95,7.22]
[1764548645785,6.9198,130.06,129.96,7.22]
[1764548645984,107.6204,130.09,129.97,107.7096]
[1764548646172,107.6251,130.08,129.99,7.22]
[1764548646373,114.5438,130.08,129.99,7.22]
[1764548646572,0.05108946,130.05,130.02,0.05693548]
[1764548648084,107.612,130.1,130.02,0.05693548]
[1764548648085,107.5946,130.12,130.02,7.27693548]
[1764548648280,107.5775,130.14,130.03,7.22]
[1764548648478,114.5069,130.12,130.03,7.22]